fUST/lending_fUST_20241003
["ID","MTS","AMOUNT","RATE_DAILY","PERIOD"]
[339714624,1727889060337,-1247.81,0.00013972,2]
[339714626,1727889060347,-453.65459941,0.00013972,2]
[339714628,1727889060359,-500.0,0.00013972,2]
[339714630,1727889060369,-500.0,0.00013972,2]
[339714632,1727889060379,-500.0,0.00013972,2]
[339714635,1727889060390,-716.52,0.00013972,2]
[339714637,1727889060400,-500.0,0.00013972,2]
[339714639,1727889060410,-639.46,0.00013972,2]
[339714641,1727889060420,-496.92189733,0.00013972,2]
[339714643,1727889060429,-500.0,0.00013972,2]
[339714645,1727889060439,-349.040092,0.00013972,2]
[339714646,1727889060448,-349.040092,0.00013972,2]
[339714649,1727889060458,-151.0,0.00013972,2]
[339714651,1727889060469,-500.0,0.00013972,2]
[339714653,1727889060479,-349.040092,0.00013972,2]
[339714654,1727889060488,-349.040092,0.00013972,2]
[339714657,1727889060504,-151.0,0.00013972,2]
[339714659,1727889060513,-151.0,0.00013972,2]
[339714661,1727889060527,-151.0,0.00013972,2]
[339714663,1727889060537,-500.0,0.00013972,2]
[339714665,1727889060547,-349.040092,0.00013972,2]
[339714667,1727889060557,-349.040092,0.00013972,2]
[339714669,1727889060566,-349.040092,0.00013972,2]
[339714671,1727889060576,-349.040095,0.00013972,2]
[339714673,1727889060586,-500.0,0.00013972,2]
[339714675,1727889060595,-482.79549079,0.00013972,2]
[339714677,1727889060605,-402.95260925,0.00013972,2]
[339714679,1727889060614,-500.0,0.00013972,2]
[339714681,1727889060624,-500.0,0.00013972,2]
[339714683,1727889060634,-500.0,0.00013972,2]
[339714685,1727889060644,-500.0,0.00013972,2]
[339714687,1727889060655,-531.86,0.00013972,2]
[339714689,1727889060664,-500.0,0.00013972,2]
[339714691,1727889060675,-500.0,0.00013972,2]
[339714693,1727889060686,-500.0,0.00013972,2]
[339714695,1727889060696,-2288.02,0.00013972,2]
[339714697,1727889060706,-500.0,0.00013972,2]
[339714699,1727889060717,-500.0,0.00013972,2]
[339714701,1727889060727,-500.0,0.00013972,2]
[339714703,1727889060737,-500.0,0.00013972,2]
[339714706,1727889060748,-500.0,0.00013972,5]
[339714708,1727889060757,-500.0,0.00013972,2]
[339714710,1727889060766,-500.0,0.00013972,2]
[339714712,1727889060778,-500.0,0.00013972,2]
[339714714,1727889060789,-500.0,0.00013972,2]
[339714716,1727889060799,-151.0,0.00013972,2]
[339714718,1727889060809,-500.0,0.00013972,2]
[339714720,1727889060819,-151.0,0.00013972,2]
[339714722,1727889060831,-3505.83,0.00013972,2]
[339714724,1727889060841,-151.0,0.00013972,2]
[339714727,1727889060852,-151.0,0.00013972,2]
[339714729,1727889060862,-556.15063241,0.00013972,2]
[339714731,1727889060872,-500.0,0.00013972,2]
[339714732,1727889060881,-500.0,0.00013972,2]
[339714733,1727889060890,-500.0,0.00013972,2]
[339714734,1727889060900,-500.0,0.00013972,2]
[339714735,1727889060910,-500.0,0.00013972,2]
[339714736,1727889060919,-500.0,0.00013972,2]
[339714737,1727889060930,-500.0,0.00013972,2]
[339714738,1727889060941,-500.0,0.00013972,2]
[339714739,1727889060952,-500.0,0.00013972,2]
[339714740,1727889060962,-661.36,0.00013972,2]
[339714741,1727889060971,-500.0,0.00013972,2]
[339714742,1727889060981,-500.0,0.00013972,2]
[339714743,1727889060991,-875.323779,0.00013972,2]
[339714744,1727889061001,-875.323779,0.00013972,2]
[339714746,1727889061010,-875.323779,0.00013972,2]
[339714748,1727889061022,-500.0,0.00013972,2]
[339714750,1727889061035,-526.97945769,0.00013972,2]
[339714752,1727889061045,-875.323779,0.00013972,2]
[339714754,1727889061055,-500.0,0.00013972,2]
[339714756,1727889061066,-500.0,0.00013972,2]
[339714758,1727889061078,-608.27987855,0.00013972,2]
[339714760,1727889061087,-500.0,0.00013972,2]
[339714762,1727889061097,-500.0,0.00013972,2]
[339714764,1727889061110,-875.323779,0.00013972,2]
[339714766,1727889061119,-875.323779,0.00013972,2]
[339714768,1727889061129,-492.28028169,0.00013972,2]
[339714770,1727889061138,-875.323779,0.00013972,2]
[339714772,1727889061147,-875.323771,0.00013972,2]
[339714774,1727889061158,-500.0,0.00013972,2]
[339714776,1727889061167,-500.0,0.00013972,2]
[339714778,1727889061177,-500.0,0.00013972,2]
[339714780,1727889061186,-500.0,0.00013972,2]
[339714782,1727889061196,-1177.16,0.00013972,2]
[339714784,1727889061207,-500.0,0.00013972,2]
[339714786,1727889061216,-500.0,0.00013972,2]
[339714788,1727889061226,-564.84,0.00013972,2]
[339714790,1727889061235,-500.0,0.00013972,2]
[339714792,1727889061246,-539.49,0.00013972,2]
[339714794,1727889061256,-500.0,0.00013972,2]
[339714796,1727889061266,-500.0,0.00013972,2]
[339714798,1727889061278,-500.0,0.00013972,2]
[339714800,1727889061287,-500.0,0.00013972,2]
[339714813,1727889061408,-500.0,0.00013972,2]
[339714815,1727889061419,-508.89,0.00013972,2]
[339714817,1727889061428,-947.22,0.00013972,2]
[339714819,1727889061438,-500.0,0.00013972,2]
[339714821,1727889061448,-151.0,0.00013972,2]
[339714823,1727889061458,-151.0,0.00013972,2]
[339714825,1727889061468,-151.0,0.00013972,2]
[339714827,1727889061477,-151.0,0.00013972,2]
[339714828,1727889061487,-500.0,0.00013972,2]
[339714830,1727889061500,-500.0,0.00013972,2]
[339714831,1727889061510,-590.766129,0.00013972,2]
[339714832,1727889061520,-517.86184499,0.00013972,2]
[339714833,1727889061530,-590.766129,0.00013972,2]
[339714834,1727889061540,-590.766129,0.00013972,2]
[339714835,1727889061550,-590.766129,0.00013972,2]
[339714836,1727889061560,-500.0,0.00013972,2]
[339714837,1727889061571,-500.0,0.00013972,2]
[339714838,1727889061583,-814.56,0.00013972,2]
[339714839,1727889061592,-590.766129,0.00013972,2]
[339714840,1727889061603,-1090.25,0.00013972,2]
[339714841,1727889061613,-595.48,0.00013972,2]
[339714842,1727889061623,-500.0,0.00013972,2]
[339714843,1727889061635,-590.766129,0.00013972,2]
[339714844,1727889061646,-590.766129,0.00013972,2]
[339714845,1727889061656,-500.0,0.00013972,2]
[339714846,1727889061667,-590.766129,0.00013972,2]
[339714847,1727889061678,-932.57,0.00013972,2]
[339714848,1727889061687,-500.0,0.00013972,2]
[339714849,1727889061697,-500.0,0.00013972,2]
[339714850,1727889061708,-547.16,0.00013972,2]
[339714852,1727889061719,-500.0,0.00013972,2]
[339714854,1727889061731,-2283.311148,0.00013972,2]
[339714856,1727889061741,-500.0,0.00013972,2]
[339714858,1727889061750,-500.0,0.00013972,2]
[339714860,1727889061760,-2283.311148,0.00013972,2]
[339714862,1727889061770,-2283.311148,0.00013972,2]
[339714864,1727889061779,-2283.311148,0.00013972,2]
[339714866,1727889061789,-500.0,0.00013972,2]
[339714867,1727889061798,-212.47315769,0.00013972,2]
[339714869,1727889061808,-2283.311148,0.00013972,2]
[339714871,1727889061818,-2283.311148,0.00013972,2]
[339714873,1727889061827,-500.0,0.00013972,2]
[339714875,1727889061836,-500.0,0.00013972,2]
[339714877,1727889061846,-2283.311148,0.00013972,2]
[339714879,1727889061856,-500.0,0.00013972,2]
[339714881,1727889061866,-2283.311138,0.00013972,2]
[339714883,1727889061876,-950.28,0.00013972,2]
[339714885,1727889061886,-500.0,0.00013972,2]
[339714887,1727889061896,-500.0,0.00013972,2]
[339714889,1727889061906,-500.0,0.00013972,2]
[339714891,1727889061916,-500.0,0.00013972,2]
[339714893,1727889061926,-500.0,0.00013972,2]
[339714895,1727889061935,-500.0,0.00013972,2]
[339714896,1727889061945,-500.0,0.00013972,2]
[339714898,1727889061954,-500.0,0.00013972,2]
[339714900,1727889061964,-500.0,0.00013972,2]
[339714902,1727889061974,-500.0,0.00013972,2]
[339714904,1727889061984,-580.188928,0.00013972,2]
[339714906,1727889061993,-580.188928,0.00013972,2]
[339714908,1727889062003,-580.188928,0.00013972,2]
[339714910,1727889062013,-517.43,0.00013972,2]
[339714912,1727889062023,-580.188928,0.00013972,2]
[339714914,1727889062032,-3860.98,0.00013972,2]
[339714916,1727889062041,-500.0,0.00013972,2]
[339714918,1727889062051,-580.188928,0.00013972,2]
[339714920,1727889062061,-580.188928,0.00013972,2]
[339714921,1727889062071,-580.188928,0.00013972,2]
[339714923,1727889062080,-580.188921,0.00013972,2]
[339714925,1727889062090,-416.375932,0.00013972,2]
[339714927,1727889062102,-416.375932,0.00013972,2]
[339714929,1727889062112,-416.375932,0.00013972,2]
[339714931,1727889062122,-416.375932,0.00013972,2]
[339714933,1727889062131,-2509.27,0.00013972,2]
[339714935,1727889062143,-500.0,0.00013972,2]
[339714937,1727889062153,-416.375932,0.00013972,2]
[339714939,1727889062165,-416.375932,0.00013972,2]
[339714941,1727889062175,-416.375932,0.00013972,2]
[339714944,1727889062186,-416.375937,0.00013972,2]
[339714946,1727889062198,-609.02,0.00013972,2]
[339714948,1727889062209,-500.0,0.00013972,2]
[339714950,1727889062219,-500.0,0.00013972,2]
[339714952,1727889062229,-562.21,0.00013972,2]
[339714954,1727889062239,-500.0,0.00013972,2]
[339714956,1727889062251,-151.0,0.00013972,2]
[339714958,1727889062261,-151.0,0.00013972,2]
[339714960,1727889062272,-151.0,0.00013972,2]
[339714962,1727889062282,-151.0,0.00013972,2]
[339714964,1727889062291,-269.929738,0.00013972,2]
[339714966,1727889062301,-270.104339,0.00013972,2]
[339714968,1727889062313,-500.0,0.00013972,2]
[339714970,1727889062323,-245.051095,0.00013972,2]
[339714972,1727889062332,-513.86,0.00013972,2]
[339714974,1727889062342,-2274.05,0.00013972,2]
[339714976,1727889062353,-500.0,0.00013972,2]
[339714978,1727889062363,-500.0,0.00013972,2]
[339714980,1727889062374,-500.0,0.00013972,2]
[339714982,1727889062384,-500.0,0.00013972,2]
[339714984,1727889062394,-617.73,0.00013972,2]
[339714986,1727889062404,-500.0,0.00013972,2]
[339714988,1727889062414,-547.3,0.00013972,2]
[339714990,1727889062424,-1574.19,0.00013972,2]
[339714992,1727889062434,-3800.54,0.00013972,2]
[339714994,1727889062445,-192.39015104,0.00013972,2]
[339714996,1727889062455,-500.0,0.00013972,2]
[339714998,1727889062466,-500.0,0.00013972,2]
[339715000,1727889062477,-360.210564,0.00013972,2]
[339715002,1727889062487,-592.28,0.00013972,2]
[339715005,1727889062501,-360.210564,0.00013972,2]
[339715007,1727889062511,-360.210564,0.00013972,2]
[339715009,1727889062520,-360.210564,0.00013972,2]
[339715011,1727889062533,-500.0,0.00013972,2]
[339715013,1727889062544,-620.36,0.00013972,2]
[339715015,1727889062554,-360.210564,0.00013972,2]
[339715017,1727889062565,-500.0,0.00013972,2]
[339715019,1727889062575,-360.210564,0.00013972,2]
[339715021,1727889062586,-360.210564,0.00013972,2]
[339715023,1727889062596,-500.0,0.00013972,2]
[339715025,1727889062607,-360.210559,0.00013972,2]
[339715027,1727889062619,-500.0,0.00013972,2]
[339715029,1727889062628,-500.0,0.00013972,2]
[339715031,1727889062638,-1232.88,0.00013972,2]
[339715033,1727889062648,-887.11,0.00013972,2]
[339715035,1727889062658,-500.0,0.00013972,2]
[339715038,1727889062668,-793.28,0.00013972,2]
[339715040,1727889062678,-500.0,0.00013972,2]
[339715042,1727889062688,-555.03,0.00013972,2]
[339715044,1727889062698,-500.0,0.00013972,2]
[339715046,1727889062708,-500.0,0.00013972,2]
[339715048,1727889062718,-151.0,0.00013972,2]
[339715050,1727889062727,-151.0,0.00013972,2]
[339715052,1727889062738,-500.0,0.00013972,2]
[339715054,1727889062748,-151.0,0.00013972,2]
[339715056,1727889062759,-804.47,0.00013972,2]
[339715058,1727889062769,-500.0,0.00013972,2]
[339715060,1727889062781,-151.0,0.00013972,2]
[339715062,1727889062794,-500.0,0.00013972,2]
[339715064,1727889062805,-500.0,0.00013972,2]
[339715066,1727889062814,-151.0,0.00013972,2]
[339715068,1727889062823,-289.830456,0.00013972,2]
[339715070,1727889062832,-500.0,0.00013972,2]
[339715072,1727889062842,-631.94,0.00013972,2]
[339715074,1727889062853,-500.0,0.00013972,2]
[339715076,1727889062863,-637.96,0.00013972,2]
[339715078,1727889062873,-634.87938657,0.00013972,2]
[339715161,1727889064013,-83.29127302,0.00013699,2]
[339715241,1727889064790,-416.70872698,0.00013699,2]
[339715244,1727889064801,-297.89061343,0.00013972,2]
[339715246,1727889064811,-500.0,0.00013972,2]
[339715248,1727889064820,-500.0,0.00013972,2]
[339715250,1727889064830,-207.70543948,0.00013972,2]
[339715252,1727889064841,-1115.73,0.00013972,2]
[339715254,1727889064852,-546.02892273,0.00013972,2]
[339715256,1727889064862,-646.92,0.00013972,2]
[339715258,1727889064872,-1036.47,0.00013972,2]
[339715260,1727889064882,-790.36,0.00013972,2]
[339715262,1727889064892,-500.0,0.00013972,2]
[339715264,1727889064901,-500.0,0.00013972,2]
[339715266,1727889064911,-500.0,0.00013972,2]
[339715268,1727889064921,-247.027082,0.00013972,2]
[339715270,1727889064930,-247.027082,0.00013972,2]
[339715272,1727889064940,-500.0,0.00013972,2]
[339715274,1727889064949,-247.027082,0.00013972,2]
[339715297,1727889064959,-500.0,0.00013972,2]
[339715309,1727889065264,-247.027082,0.00013972,2]
[339715312,1727889065284,-535.45,0.00013972,2]
[339715314,1727889065293,-565.22015851,0.00013972,2]
[339715316,1727889065302,-688.02,0.00013972,2]
[339715318,1727889065312,-247.027082,0.00013972,2]
[339715320,1727889065322,-247.027082,0.00013972,2]
[339715322,1727889065332,-247.027082,0.00013972,2]
[339715324,1727889065341,-247.027082,0.00013972,2]
[339715326,1727889065350,-500.0,0.00013972,2]
[339715328,1727889065360,-663.44,0.00013972,2]
[339715330,1727889065370,-500.0,0.00013972,2]
[339715332,1727889065379,-1051.61,0.00013972,2]
[339715334,1727889065389,-514.39378722,0.00013972,2]
[339715336,1727889065399,-979.26,0.00013972,2]
[339715338,1727889065408,-973.03,0.00013972,2]
[339715340,1727889065418,-500.0,0.00013972,2]
[339715342,1727889065427,-500.0,0.00013972,2]
[339715344,1727889065437,-151.0,0.00013972,2]
[339715346,1727889065447,-500.0,0.00013972,2]
[339715348,1727889065457,-160.065236,0.00013972,2]
[339715350,1727889065467,-1012.83,0.00013972,2]
[339715352,1727889065476,-500.0,0.00013972,2]
[339715354,1727889065486,-500.0,0.00013972,2]
[339715356,1727889065496,-886.56,0.00013972,2]
[339715358,1727889065507,-690.99,0.00013972,2]
[339715360,1727889065516,-500.0,0.00013972,2]
[339715362,1727889065526,-2221.34,0.00013972,2]
[339715364,1727889065536,-500.0,0.00013972,2]
[339715366,1727889065546,-500.0,0.00013972,2]
[339715368,1727889065555,-500.0,0.00013972,2]
[339715370,1727889065566,-500.0,0.00013972,2]
[339715372,1727889065577,-500.0,0.00013972,2]
[339715374,1727889065587,-500.0,0.00013972,2]
[339715376,1727889065596,-500.0,0.00013972,2]
[339715378,1727889065607,-500.0,0.00013972,2]
[339715380,1727889065616,-500.0,0.00013972,2]
[339715382,1727889065626,-500.0,0.00013972,2]
[339715384,1727889065635,-500.0,0.00013972,2]
[339715386,1727889065645,-486.26,0.00013972,2]
[339715388,1727889065654,-500.0,0.00013972,2]
[339715390,1727889065664,-2933.15,0.00013972,2]
[339715392,1727889065673,-500.0,0.00013972,2]
[339715394,1727889065682,-500.0,0.00013972,2]
[339715396,1727889065692,-500.0,0.00013972,2]
[339715398,1727889065702,-1515.39,0.00013972,2]
[339715400,1727889065711,-638.3,0.00013972,2]
[339715402,1727889065720,-931.03,0.00013972,2]
[339715404,1727889065730,-695.14,0.00013972,2]
[339715406,1727889065739,-891.119039,0.00013972,2]
[339715408,1727889065748,-891.119039,0.00013972,2]
[339715410,1727889065758,-891.119039,0.00013972,2]
[339715412,1727889065767,-626.93912128,0.00013972,2]
[339715414,1727889065778,-891.119039,0.00013972,2]
[339715416,1727889065788,-264.814392,0.00013972,2]
[339715419,1727889065799,-891.119039,0.00013972,2]
[339715421,1727889065809,-264.814392,0.00013972,2]
[339715423,1727889065820,-891.119039,0.00013972,2]
[339715425,1727889065830,-264.814392,0.00013972,2]
[339715427,1727889065841,-891.119039,0.00013972,2]
[339715429,1727889065851,-264.814392,0.00013972,2]
[339715431,1727889065862,-500.0,0.00013972,2]
[339715433,1727889065871,-891.119039,0.00013972,2]
[339715435,1727889065880,-649.47,0.00013972,2]
[339715437,1727889065890,-500.0,0.00013972,2]
[339715439,1727889065899,-500.0,0.00013972,2]
[339715441,1727889065908,-500.0,0.00013972,2]
[339715443,1727889065918,-264.814392,0.00013972,2]
[339715445,1727889065927,-500.0,0.00013972,2]
[339715447,1727889065937,-264.814392,0.00013972,2]
[339715449,1727889065946,-500.0,0.00013972,2]
[339715451,1727889065956,-264.814392,0.00013972,2]
[339715453,1727889065966,-529.24,0.00013972,2]
[339715455,1727889065975,-500.0,0.00013972,2]
[339715457,1727889065985,-533.83,0.00013972,2]
[339715460,1727889065995,-264.814392,0.00013972,2]
[339715462,1727889066005,-500.0,0.00013972,2]
[339715464,1727889066015,-500.0,0.00013972,2]
[339715466,1727889066025,-500.0,0.00013972,2]
[339715467,1727889066035,-500.0,0.00013973,2]
[339715469,1727889066045,-500.0,0.00013973,2]
[339715472,1727889066072,-500.0,0.00013973,2]
[339715474,1727889066090,-500.0,0.00013973,2]
[339715476,1727889066100,-600.83549981,0.00013973,2]
[339715477,1727889066114,-500.0,0.00013973,2]
[339715478,1727889066136,-362.40193567,0.00013973,2]
[339715479,1727889066157,-500.0,0.00013973,2]
[339715480,1727889066174,-151.76353201,0.00013973,2]
[339715481,1727889066183,-500.0,0.00013973,2]
[339715482,1727889066193,-301.06220544,0.00013973,2]
[339715484,1727889066203,-500.0,0.00013973,2]
[339715486,1727889066212,-500.0,0.00013973,2]
[339715488,1727889066222,-500.0,0.00013973,2]
[339715490,1727889066232,-500.0,0.00013973,2]
[339715492,1727889066242,-500.11065233,0.00013973,2]
[339715494,1727889066253,-151.0,0.00013973,2]
[339715496,1727889066262,-151.0,0.00013973,2]
[339715499,1727889066273,-500.0,0.00013999,2]
[339715501,1727889066285,-350.26048425,0.00014,2]
[339715503,1727889066295,-702.63158258,0.00014,2]
[339715505,1727889066305,-608.3002881,0.00014,11]
[339715689,1727889068068,706.78,0.00010959,2]
[339716514,1727889079390,500.0,0.00011506,2]
[339716564,1727889669669,-652.76,0.00012291,2]
[339716565,1727889669697,-3000.0,0.00012391,2]
[339716566,1727889669719,-596.02615281,0.00012597,4]
[339716567,1727889669745,-300.0,0.00012697,2]
[339716568,1727889669768,-300.0,0.00012697,2]
[339716569,1727889669791,-21971.4758213,0.00012698,2]
[339716570,1727889669816,-250.0,0.00012794,2]
[339716571,1727889669843,-250.0,0.00012829,2]
[339716572,1727889669867,-250.0,0.00012864,2]
[339716573,1727889669890,-500.0,0.00012876,2]
[339716574,1727889669913,-250.0,0.00012899,2]
[339716575,1727889669937,-250.0,0.00012934,2]
[339716576,1727889669961,-250.0,0.00012969,2]
[339716577,1727889669984,-250.0,0.00013004,2]
[339716578,1727889670009,-250.0,0.00013039,2]
[339716579,1727889670033,-250.0,0.00013074,2]
[339716580,1727889670057,-250.0,0.0001311,2]
[339716581,1727889799609,-500.0,0.00011506,2]
[339716582,1727889799636,-500.0,0.00012876,2]
[339716583,1727889942148,-371.13692918,0.00011506,2]
[339716584,1727889948131,-128.86307082,0.00011506,2]
[339716585,1727889948154,-500.0,0.00012876,2]
[339716586,1727889948179,-250.0,0.00013145,2]
[339716587,1727889948203,-250.0,0.0001318,2]
[339716588,1727889948227,-250.0,0.00013215,2]
[339716589,1727889948251,-250.0,0.0001325,2]
[339716590,1727889948275,-250.0,0.00013285,2]
[339716591,1727889948299,-2000.0,0.000133,2]
[339716592,1727889948323,-250.0,0.0001332,2]
[339716593,1727889948348,-250.0,0.00013355,2]
[339716594,1727889948372,-250.0,0.0001339,2]
[339716595,1727889948395,-300.0,0.00013424,2]
[339716596,1727889948417,-300.0,0.00013424,2]
[339716597,1727889948439,-412.701024,0.00013425,2]
[339716598,1727889948461,-412.701024,0.00013425,2]
[339716599,1727889948483,-412.701024,0.00013425,2]
[339716600,1727889948506,-49.83410748,0.00013425,2]
[339716601,1727890028109,-500.0,0.00011506,2]
[339716602,1727890028147,-1000.0,0.00013,2]
[339716603,1727890028180,-362.86691652,0.00013425,2]
[339716604,1727890028214,-333.2557428,0.00013425,2]
[339716606,1727890122033,18803.46474308,0.0001,2]
[339716616,1727890148541,-166.666666,0.00012474,2]
[339716620,1727890163150,-166.666666,0.00012799,2]
[339716622,1727890180244,500.0,0.00011506,2]
[339716636,1727890211793,520.21,0.00010959,2]
[339716672,1727890232411,-166.666666,0.00013124,2]
[339716673,1727890232423,-1600.0,0.000133,2]
[339716674,1727890232439,-490.1864396,0.00013425,2]
[339716675,1727890232450,-2000.0,0.0001349,2]
[339716676,1727890232461,-300.0,0.00013499,2]
[339716677,1727890232472,-300.0,0.00013499,2]
[339716678,1727890232484,-4219.5034727,0.000135,2]
[339716694,1727890238500,-724.0889167,0.000135,2]
[339716695,1727890238541,-10102.24759729,0.000135,2]
[339716696,1727890238551,-153.0,0.000135,2]
[339716697,1727890238560,-825.81350652,0.00013598,2]
[339716698,1727890238570,-412.701024,0.000136,2]
[339716699,1727890238579,-832.51706752,0.00013668,2]
[339716700,1727890238588,-233238.399554,0.00013668,2]
[339716701,1727890238598,-500.0,0.00013673,2]
[339716702,1727890238608,-500.0,0.00013673,2]
[339716703,1727890238618,-500.0,0.00013673,2]
[339716704,1727890238627,-500.0,0.00013673,2]
[339716705,1727890238637,-172539.02895376,0.00013678,2]
[339716712,1727890240747,-122209.19796624,0.00013678,2]
[339716713,1727890240757,-93295.3598215,0.00013688,2]
[339716714,1727890240769,-510.12003069,0.00013698,2]
[339716715,1727890240780,-500.0,0.00013698,2]
[339716716,1727890240790,-500.0,0.00013698,2]
[339716717,1727890240799,-500.0,0.00013698,2]
[339716718,1727890240813,-500.0,0.00013698,2]
[339716719,1727890240823,-224.56102939,0.00013698,2]
[339716720,1727890240834,-500.0,0.00013698,2]
[339716721,1727890240843,-500.0,0.00013698,2]
[339716722,1727890240855,-500.0,0.00013698,2]
[339716723,1727890240866,-500.0,0.00013698,2]
[339716724,1727890240875,-500.0,0.00013698,2]
[339716725,1727890240884,-500.0,0.00013698,2]
[339716726,1727890240895,-500.0,0.00013698,2]
[339716727,1727890240904,-500.0,0.00013698,2]
[339716728,1727890240914,-500.0,0.00013698,2]
[339716729,1727890240924,-500.0,0.00013698,2]
[339716730,1727890240934,-500.0,0.00013698,2]
[339716731,1727890240944,-500.0,0.00013698,2]
[339716732,1727890240953,-609.79596459,0.00013698,2]
[339716733,1727890240962,-500.0,0.00013698,2]
[339716734,1727890240972,-500.0,0.00013698,2]
[339716735,1727890240986,-500.0,0.00013698,2]
[339716736,1727890240996,-500.0,0.00013698,2]
[339716737,1727890241005,-378.05453151,0.00013698,2]
[339716738,1727890241016,-573.55733025,0.00013698,2]
[339716739,1727890241027,-196.49326061,0.00013698,2]
[339716740,1727890241037,-500.0,0.00013698,2]
[339716741,1727890241047,-500.0,0.00013698,2]
[339716742,1727890241059,-500.0,0.00013698,2]
[339716743,1727890241069,-600.40270564,0.00013698,2]
[339716744,1727890241078,-500.0,0.00013698,2]
[339716745,1727890241087,-500.0,0.00013698,2]
[339716746,1727890241098,-500.0,0.00013698,2]
[339716747,1727890241108,-500.0,0.00013698,2]
[339716748,1727890241119,-500.0,0.00013698,2]
[339716749,1727890241130,-500.0,0.00013698,2]
[339716750,1727890241139,-242.17755247,0.00013698,2]
[339716751,1727890241150,-500.0,0.00013698,2]
[339716752,1727890241160,-500.0,0.00013698,2]
[339716753,1727890241170,-478.09454856,0.00013698,2]
[339716754,1727890241180,-500.0,0.00013698,2]
[339716755,1727890241189,-450.0,0.00013698,2]
[339716756,1727890241199,-500.0,0.00013698,2]
[339716757,1727890241208,-1067.55,0.00013698,2]
[339716758,1727890241218,-507.03377041,0.00013698,2]
[339716759,1727890241229,-500.0,0.00013698,2]
[339716760,1727890241239,-500.0,0.00013698,2]
[339716761,1727890241249,-500.0,0.00013698,2]
[339716762,1727890241259,-500.0,0.00013698,2]
[339716763,1727890241270,-606.85,0.00013698,2]
[339716764,1727890241279,-500.0,0.00013698,2]
[339716765,1727890241288,-650.97,0.00013698,2]
[339716766,1727890241298,-500.0,0.00013698,2]
[339716767,1727890241309,-500.0,0.00013698,2]
[339716768,1727890241319,-755.58,0.00013698,2]
[339716769,1727890241330,-500.0,0.00013698,2]
[339716770,1727890241340,-500.0,0.00013698,2]
[339716771,1727890241349,-500.0,0.00013698,2]
[339716772,1727890241360,-524.88,0.00013698,2]
[339716773,1727890241371,-500.0,0.00013698,2]
[339716774,1727890241382,-500.0,0.00013698,2]
[339716775,1727890241391,-500.0,0.00013698,2]
[339716776,1727890241401,-789.03,0.00013698,2]
[339716777,1727890241411,-500.0,0.00013698,2]
[339716778,1727890241421,-177.78,0.00013698,2]
[339716779,1727890241431,-840.21,0.00013698,2]
[339716780,1727890241441,-539.5,0.00013698,2]
[339716781,1727890241452,-386.55695275,0.00013698,2]
[339716782,1727890241462,-500.0,0.00013698,2]
[339716783,1727890241472,-501.32191278,0.00013698,2]
[339716784,1727890241482,-500.0,0.00013698,2]
[339716785,1727890241492,-500.0,0.00013698,2]
[339716786,1727890241505,-581.59,0.00013698,2]
[339716787,1727890241516,-500.0,0.00013698,2]